[Event "Titled Tuesday Blitz November 15 Late 2022"]
[White "Melian, Juan Sebastian"]
[Black "Rosenberg, Evan S"]
[WhiteFideId "3706575"]
[BlackFideId "2019299"]
[WhiteElo "2044"]
[BlackElo "2369"]
[Result "1-0"]
[Round "03"]
[TimeControl "180+1"]
[Date "2022.11.16"]
[WhiteClock "0:00:14"]
[BlackClock "0:00:02"]

1. d4 {[%clk 0:03:00]}  d5 {[%clk 0:02:59]} 2. c4 {[%clk 0:02:54]}  e6 {[%clk 0:03:00]} 3. Nc3 {[%clk 0:02:54]}  c5 {[%clk 0:03:00]} 4. cxd5 {[%clk 0:02:53]}  cxd4 {[%clk 0:03:00]} 5. Qa4+ {[%clk 0:02:53]}  Bd7 {[%clk 0:03:00]} 6. Qxd4 {[%clk 0:02:53]}  exd5 {[%clk 0:03:00]} 7. Qxd5 {[%clk 0:02:31]}  Nf6 {[%clk 0:02:59]} 8. Qg5 {[%clk 0:02:21]}  Nc6 {[%clk 0:02:41]} 9. Nf3 {[%clk 0:02:17]}  h6 {[%clk 0:02:21]} 10. Qf4 {[%clk 0:02:08]}  Bc5 {[%clk 0:02:05]} 11. Be3 {[%clk 0:01:41]}  g5 {[%clk 0:01:27]} 12. Qc4 {[%clk 0:01:03]}  Bxe3 {[%clk 0:01:23]} 13. fxe3 {[%clk 0:01:04]}  O-O {[%clk 0:01:17]} 14. Rd1 {[%clk 0:00:58]}  Qe7 {[%clk 0:01:14]} 15. e4 {[%clk 0:00:54]}  Ne5 {[%clk 0:00:47]} 16. Nd5 {[%clk 0:00:45]}  Nxd5 {[%clk 0:00:37]} 17. Qxd5 {[%clk 0:00:45]}  Qb4+ {[%clk 0:00:26]} 18. Qd2 {[%clk 0:00:44]}  Qxd2+ {[%clk 0:00:20]} 19. Rxd2 {[%clk 0:00:42]}  Nxf3+ {[%clk 0:00:11]} 20. exf3 {[%clk 0:00:43]}  Be6 {[%clk 0:00:12]} 21. a3 {[%clk 0:00:40]}  Rfe8 {[%clk 0:00:12]} 22. Bd3 {[%clk 0:00:40]}  Rad8 {[%clk 0:00:11]} 23. Ke2 {[%clk 0:00:40]}  f5 {[%clk 0:00:11]} 24. Rhd1 {[%clk 0:00:40]}  fxe4 {[%clk 0:00:10]} 25. Bxe4 {[%clk 0:00:41]}  Rxd2+ {[%clk 0:00:09]} 26. Rxd2 {[%clk 0:00:42]}  Bf5 {[%clk 0:00:09]} 27. Ke3 {[%clk 0:00:40]}  Bxe4 {[%clk 0:00:08]} 28. fxe4 {[%clk 0:00:40]}  Re7 {[%clk 0:00:09]} 29. Rd5 {[%clk 0:00:39]}  Kg7 {[%clk 0:00:08]} 30. Kd4 {[%clk 0:00:39]}  Kf6 {[%clk 0:00:08]} 31. Rf5+ {[%clk 0:00:38]}  Kg6 {[%clk 0:00:08]} 32. Rd5 {[%clk 0:00:38]}  Kf6 {[%clk 0:00:08]} 33. g4 {[%clk 0:00:32]}  Rc7 {[%clk 0:00:05]} 34. e5+ {[%clk 0:00:30]}  Kg6 {[%clk 0:00:04]} 35. Rd6+ {[%clk 0:00:30]}  Kg7 {[%clk 0:00:04]} 36. Kd5 {[%clk 0:00:25]}  Rc2 {[%clk 0:00:05]} 37. Rd7+ {[%clk 0:00:25]}  Kg6 {[%clk 0:00:04]} 38. Rxb7 {[%clk 0:00:25]}  Rd2+ {[%clk 0:00:04]} 39. Ke6 {[%clk 0:00:25]}  Rxh2 {[%clk 0:00:04]} 40. Ke7 {[%clk 0:00:19]}  h5 {[%clk 0:00:03]} 41. gxh5+ {[%clk 0:00:18]}  Kxh5 {[%clk 0:00:02]} 42. Rb8 {[%clk 0:00:14]} 1-0


[Site "https://www.chess.com"]

[Event "Titled Tuesday Blitz November 15 Late 2022"]
[White "Mikaelyan, Arman"]
[Black "Palencia Morales, Wilson Guillermo"]
[WhiteFideId "13304852"]
[BlackFideId "4401859"]
[WhiteElo "2456"]
[BlackElo "2160"]
[Result "1-0"]
[Round "03"]
[TimeControl "180+1"]
[Date "2022.11.16"]
[WhiteClock "0:01:15"]
[BlackClock "0:01:00"]

1. d4 {[%clk 0:02:57]}  Nf6 {[%clk 0:02:59]} 2. Bg5 {[%clk 0:02:55]}  Ne4 {[%clk 0:02:58]} 3. Bf4 {[%clk 0:02:55]}  c5 {[%clk 0:02:58]} 4. f3 {[%clk 0:02:53]}  Nf6 {[%clk 0:02:56]} 5. d5 {[%clk 0:02:53]}  g6 {[%clk 0:02:55]} 6. e4 {[%clk 0:02:52]}  d6 {[%clk 0:02:54]} 7. Nc3 {[%clk 0:02:53]}  Bg7 {[%clk 0:02:53]} 8. Qd2 {[%clk 0:02:53]}  a6 {[%clk 0:02:51]} 9. a4 {[%clk 0:02:51]}  Nbd7 {[%clk 0:02:45]} 10. Nge2 {[%clk 0:02:49]}  Qa5 {[%clk 0:02:44]} 11. Nd1 {[%clk 0:02:39]}  Qxd2+ {[%clk 0:02:41]} 12. Bxd2 {[%clk 0:02:34]}  e6 {[%clk 0:02:40]} 13. dxe6 {[%clk 0:02:33]}  fxe6 {[%clk 0:02:39]} 14. Ne3 {[%clk 0:02:34]}  Ne5 {[%clk 0:02:30]} 15. Nc3 {[%clk 0:02:31]}  Bd7 {[%clk 0:02:28]} 16. a5 {[%clk 0:02:29]}  Bc6 {[%clk 0:02:26]} 17. h3 {[%clk 0:02:26]}  g5 {[%clk 0:02:24]} 18. Ng4 {[%clk 0:02:25]}  Nexg4 {[%clk 0:02:20]} 19. hxg4 {[%clk 0:02:26]}  h6 {[%clk 0:02:20]} 20. e5 {[%clk 0:02:25]}  dxe5 {[%clk 0:02:18]} 21. Bd3 {[%clk 0:02:24]}  e4 {[%clk 0:02:10]} 22. Nxe4 {[%clk 0:02:21]}  Nxe4 {[%clk 0:02:03]} 23. Bxe4 {[%clk 0:02:21]}  Bxe4 {[%clk 0:02:03]} 24. fxe4 {[%clk 0:02:22]}  O-O-O {[%clk 0:01:54]} 25. O-O-O {[%clk 0:02:06]}  Kc7 {[%clk 0:01:49]} 26. Bc3 {[%clk 0:01:47]}  Rxd1+ {[%clk 0:01:45]} 27. Kxd1 {[%clk 0:01:47]}  Bxc3 {[%clk 0:01:44]} 28. bxc3 {[%clk 0:01:47]}  Kc6 {[%clk 0:01:37]} 29. Ke2 {[%clk 0:01:47]}  Kb5 {[%clk 0:01:36]} 30. Rb1+ {[%clk 0:01:47]}  Kxa5 {[%clk 0:01:23]} 31. Rxb7 {[%clk 0:01:48]}  Rf8 {[%clk 0:01:22]} 32. g3 {[%clk 0:01:47]}  Rf6 {[%clk 0:01:15]} 33. e5 {[%clk 0:01:43]}  Rg6 {[%clk 0:01:09]} 34. Kd3 {[%clk 0:01:38]}  Rg8 {[%clk 0:01:08]} 35. Re7 {[%clk 0:01:33]}  Rd8+ {[%clk 0:01:07]} 36. Kc4 {[%clk 0:01:31]}  Rd2 {[%clk 0:01:04]} 37. Rxe6 {[%clk 0:01:31]}  Rxc2 {[%clk 0:01:04]} 38. Rxh6 {[%clk 0:01:29]}  Re2 {[%clk 0:01:04]} 39. e6 {[%clk 0:01:21]}  Ka4 {[%clk 0:01:00]} 40. Kxc5 {[%clk 0:01:16]}  a5 {[%clk 0:01:00]} 41. Kd6 {[%clk 0:01:15]}  Kb3 {[%clk 0:01:00]} 42. e7 {[%clk 0:01:15]} 1-0


[Site "https://www.chess.com"]

[Event "Titled Tuesday Blitz November 15 Late 2022"]
[White "Milosevic, Milos"]
[Black "Sailer, Mike"]
[WhiteFideId "964875"]
[BlackFideId "2012901"]
[WhiteElo "2321"]
[BlackElo "2109"]
[Result "1-0"]
[Round "03"]
[TimeControl "180+1"]
[Date "2022.11.16"]
[WhiteClock "0:01:17"]
[BlackClock "0:00:04"]

1. e4 {[%clk 0:02:59]}  d5 {[%clk 0:02:58]} 2. exd5 {[%clk 0:02:58]}  Qxd5 {[%clk 0:02:58]} 3. Nc3 {[%clk 0:02:59]}  Qd6 {[%clk 0:02:59]} 4. d4 {[%clk 0:02:57]}  Nf6 {[%clk 0:02:59]} 5. Nf3 {[%clk 0:02:56]}  c6 {[%clk 0:02:57]} 6. Bc4 {[%clk 0:02:53]}  Bg4 {[%clk 0:02:56]} 7. O-O {[%clk 0:02:52]}  e6 {[%clk 0:02:54]} 8. h3 {[%clk 0:02:47]}  Bh5 {[%clk 0:02:54]} 9. g4 {[%clk 0:02:44]}  Bg6 {[%clk 0:02:54]} 10. Ne5 {[%clk 0:02:45]}  Nbd7 {[%clk 0:02:50]} 11. Bf4 {[%clk 0:02:42]}  Qb4 {[%clk 0:02:47]} 12. a3 {[%clk 0:02:41]}  Qa5 {[%clk 0:02:34]} 13. b4 {[%clk 0:02:41]}  Qd8 {[%clk 0:02:33]} 14. Qe2 {[%clk 0:02:30]}  Nxe5 {[%clk 0:02:18]} 15. dxe5 {[%clk 0:02:21]}  Nd5 {[%clk 0:02:18]} 16. Nxd5 {[%clk 0:02:22]}  exd5 {[%clk 0:02:10]} 17. Bb3 {[%clk 0:02:20]}  Be7 {[%clk 0:02:09]} 18. c4 {[%clk 0:02:10]}  dxc4 {[%clk 0:01:57]} 19. Bxc4 {[%clk 0:02:08]}  O-O {[%clk 0:01:57]} 20. Rad1 {[%clk 0:02:06]}  Qb6 {[%clk 0:01:54]} 21. Rd7 {[%clk 0:02:03]}  Rae8 {[%clk 0:01:23]} 22. e6 {[%clk 0:02:01]}  f5 {[%clk 0:01:05]} 23. Bc7 {[%clk 0:01:58]}  fxg4 {[%clk 0:00:36]} 24. Bxb6 {[%clk 0:01:55]}  axb6 {[%clk 0:00:37]} 25. hxg4 {[%clk 0:01:45]}  Rf4 {[%clk 0:00:25]} 26. Rxb7 {[%clk 0:01:42]}  Be4 {[%clk 0:00:19]} 27. f3 {[%clk 0:01:28]}  Bg6 {[%clk 0:00:09]} 28. Bd3 {[%clk 0:01:28]}  c5 {[%clk 0:00:07]} 29. Bxg6 {[%clk 0:01:27]}  hxg6 {[%clk 0:00:07]} 30. Qb5 {[%clk 0:01:26]}  Kf8 {[%clk 0:00:06]} 31. Qxb6 {[%clk 0:01:18]}  cxb4 {[%clk 0:00:05]} 32. Rb8 {[%clk 0:01:18]}  Bc5+ {[%clk 0:00:04]} 33. Qxc5+ {[%clk 0:01:17]} 1-0


[Site "https://www.chess.com"]

[Event "Titled Tuesday Blitz November 15 Late 2022"]
[White "Nasuta, Grzegorz"]
[Black "Hansen, Eric"]
[WhiteFideId "1141686"]
[BlackFideId "2606771"]
[WhiteElo "2440"]
[BlackElo "2568"]
[Result "0-1"]
[Round "03"]
[TimeControl "180+1"]
[Date "2022.11.15"]
[WhiteClock "0:00:57"]
[BlackClock "0:01:56"]

1. e4 {[%clk 0:02:57]}  c5 {[%clk 0:02:54]} 2. Nf3 {[%clk 0:02:57]}  e6 {[%clk 0:02:45]} 3. d4 {[%clk 0:02:57]}  cxd4 {[%clk 0:02:44]} 4. Nxd4 {[%clk 0:02:58]}  a6 {[%clk 0:02:44]} 5. c4 {[%clk 0:02:58]}  Nf6 {[%clk 0:02:39]} 6. Nc3 {[%clk 0:02:58]}  Qc7 {[%clk 0:02:38]} 7. a3 {[%clk 0:02:57]}  b6 {[%clk 0:02:38]} 8. Be3 {[%clk 0:02:56]}  Bb7 {[%clk 0:02:39]} 9. f3 {[%clk 0:02:57]}  d6 {[%clk 0:02:39]} 10. Be2 {[%clk 0:02:56]}  Nbd7 {[%clk 0:02:40]} 11. Rc1 {[%clk 0:02:54]}  Be7 {[%clk 0:02:40]} 12. O-O {[%clk 0:02:53]}  O-O {[%clk 0:02:40]} 13. b4 {[%clk 0:02:53]}  Rfc8 {[%clk 0:02:40]} 14. Qd2 {[%clk 0:02:49]}  Rab8 {[%clk 0:02:41]} 15. Kh1 {[%clk 0:02:46]}  Qd8 {[%clk 0:02:41]} 16. Rfd1 {[%clk 0:02:44]}  Qf8 {[%clk 0:02:41]} 17. Qe1 {[%clk 0:02:40]}  h5 {[%clk 0:02:40]} 18. Bf2 {[%clk 0:02:34]}  Ba8 {[%clk 0:02:39]} 19. Bf1 {[%clk 0:02:34]}  Ne5 {[%clk 0:02:37]} 20. Na4 {[%clk 0:02:33]}  Qe8 {[%clk 0:02:35]} 21. Nb2 {[%clk 0:02:25]}  Ng6 {[%clk 0:02:33]} 22. Nb3 {[%clk 0:02:13]}  h4 {[%clk 0:02:26]} 23. Be3 {[%clk 0:01:34]}  h3 {[%clk 0:02:25]} 24. g3 {[%clk 0:01:34]}  d5 {[%clk 0:02:25]} 25. cxd5 {[%clk 0:01:22]}  Rxc1 {[%clk 0:02:20]} 26. Rxc1 {[%clk 0:01:12]}  exd5 {[%clk 0:02:20]} 27. Bxh3 {[%clk 0:01:12]}  dxe4 {[%clk 0:02:19]} 28. f4 {[%clk 0:01:13]}  Nd5 {[%clk 0:02:14]} 29. Nd4 {[%clk 0:01:11]}  Bf6 {[%clk 0:02:12]} 30. Rd1 {[%clk 0:01:06]}  Nxe3 {[%clk 0:02:02]} 31. Qxe3 {[%clk 0:01:07]}  Rd8 {[%clk 0:02:03]} 32. Nc4 {[%clk 0:00:57]}  Rxd4 {[%clk 0:01:55]} 33. Rxd4 {[%clk 0:00:56]}  Bxd4 {[%clk 0:01:56]} 34. Qxd4 {[%clk 0:00:57]}  e3+ {[%clk 0:01:56]} 0-1


[Site "https://www.chess.com"]

[Event "Titled Tuesday Blitz November 15 Late 2022"]
[White "Paiva, Henrique M A Albergaria"]
[Black "Sanchez Enriquez, Oscar Gerardo"]
[WhiteFideId "1920995"]
[BlackFideId "5106311"]
[WhiteElo "1953"]
[BlackElo "2375"]
[Result "1-0"]
[Round "03"]
[TimeControl "180+1"]
[Date "2022.11.16"]
[WhiteClock "0:00:20"]
[BlackClock "0:01:10"]

1. Nf3 {[%clk 0:02:53]}  g6 {[%clk 0:02:59]} 2. c4 {[%clk 0:02:52]}  Bg7 {[%clk 0:03:00]} 3. g3 {[%clk 0:02:52]}  Nf6 {[%clk 0:03:00]} 4. Bg2 {[%clk 0:02:52]}  O-O {[%clk 0:03:01]} 5. O-O {[%clk 0:02:53]}  d6 {[%clk 0:03:01]} 6. Nc3 {[%clk 0:02:53]}  c6 {[%clk 0:03:02]} 7. d4 {[%clk 0:02:53]}  Bf5 {[%clk 0:03:02]} 8. Nh4 {[%clk 0:02:51]}  Be6 {[%clk 0:03:00]} 9. d5 {[%clk 0:02:44]}  cxd5 {[%clk 0:03:00]} 10. cxd5 {[%clk 0:02:43]}  Bd7 {[%clk 0:03:01]} 11. Qb3 {[%clk 0:02:39]}  b6 {[%clk 0:02:39]} 12. Nf3 {[%clk 0:02:36]}  Na6 {[%clk 0:02:40]} 13. Nd4 {[%clk 0:02:28]}  Nc5 {[%clk 0:02:40]} 14. Qd1 {[%clk 0:02:28]}  Rc8 {[%clk 0:02:39]} 15. b4 {[%clk 0:02:20]}  e5 {[%clk 0:02:39]} 16. Nc6 {[%clk 0:02:12]}  Bxc6 {[%clk 0:02:40]} 17. dxc6 {[%clk 0:02:12]}  Ne6 {[%clk 0:02:38]} 18. e3 {[%clk 0:02:05]}  h5 {[%clk 0:02:28]} 19. b5 {[%clk 0:02:00]}  h4 {[%clk 0:02:28]} 20. a4 {[%clk 0:01:57]}  hxg3 {[%clk 0:02:25]} 21. hxg3 {[%clk 0:01:56]}  Nc5 {[%clk 0:02:26]} 22. Nd5 {[%clk 0:01:48]}  e4 {[%clk 0:02:20]} 23. Nxf6+ {[%clk 0:01:43]}  Bxf6 {[%clk 0:02:19]} 24. Rb1 {[%clk 0:01:40]}  d5 {[%clk 0:02:15]} 25. Ba3 {[%clk 0:01:38]}  Qd6 {[%clk 0:02:12]} 26. Bxe4 {[%clk 0:01:29]}  Rfd8 {[%clk 0:02:04]} 27. Bg2 {[%clk 0:01:28]}  d4 {[%clk 0:02:05]} 28. exd4 {[%clk 0:01:27]}  Bxd4 {[%clk 0:02:06]} 29. Qf3 {[%clk 0:01:13]}  a6 {[%clk 0:02:06]} 30. Rbd1 {[%clk 0:01:04]}  axb5 {[%clk 0:02:05]} 31. axb5 {[%clk 0:01:04]}  Qe6 {[%clk 0:01:56]} 32. Rfe1 {[%clk 0:00:58]}  Qc4 {[%clk 0:01:55]} 33. Bf1 {[%clk 0:00:56]}  Qa2 {[%clk 0:01:48]} 34. Bxc5 {[%clk 0:00:51]}  bxc5 {[%clk 0:01:43]} 35. b6 {[%clk 0:00:40]}  Qa5 {[%clk 0:01:41]} 36. b7 {[%clk 0:00:34]}  Rb8 {[%clk 0:01:39]} 37. Re7 {[%clk 0:00:30]}  Rf8 {[%clk 0:01:38]} 38. Bc4 {[%clk 0:00:28]}  Qa4 {[%clk 0:01:36]} 39. Bd5 {[%clk 0:00:21]}  Kg7 {[%clk 0:01:31]} 40. Rxf7+ {[%clk 0:00:21]}  Rxf7 {[%clk 0:01:31]} 41. Qxf7+ {[%clk 0:00:21]}  Kh6 {[%clk 0:01:32]} 42. Qf3 {[%clk 0:00:21]}  Qc2 {[%clk 0:01:25]} 43. Kg2 {[%clk 0:00:20]}  g5 {[%clk 0:01:10]} 44. Rh1+ {[%clk 0:00:19]}  Kg6 {[%clk 0:01:10]} 45. Be4+ {[%clk 0:00:20]} 1-0


[Site "https://www.chess.com"]

[Event "Titled Tuesday Blitz November 15 Late 2022"]
[White "Papasimakopoulos, Alexandros"]
[Black "Kirillov, Dmitry"]
[WhiteFideId "4244125"]
[BlackFideId "34180572"]
[WhiteElo "2365"]
[BlackElo "2095"]
[Result "0-1"]
[Round "03"]
[TimeControl "180+1"]
[Date "2022.11.16"]
[WhiteClock "0:01:47"]
[BlackClock "0:00:22"]

1. d4 {[%clk 0:02:54]}  d5 {[%clk 0:02:59]} 2. c4 {[%clk 0:02:54]}  e6 {[%clk 0:02:59]} 3. Nc3 {[%clk 0:02:54]}  c6 {[%clk 0:03:00]} 4. Nf3 {[%clk 0:02:52]}  dxc4 {[%clk 0:03:00]} 5. a4 {[%clk 0:02:52]}  Bb4 {[%clk 0:02:59]} 6. e3 {[%clk 0:02:52]}  b5 {[%clk 0:03:00]} 7. Bd2 {[%clk 0:02:53]}  a5 {[%clk 0:02:59]} 8. Rb1 {[%clk 0:02:53]}  Ba6 {[%clk 0:02:12]} 9. Ng1 {[%clk 0:02:53]}  Nd7 {[%clk 0:02:05]} 10. Be2 {[%clk 0:02:53]}  Ngf6 {[%clk 0:02:03]} 11. Bf3 {[%clk 0:02:51]}  Rc8 {[%clk 0:02:00]} 12. Nge2 {[%clk 0:02:52]}  O-O {[%clk 0:01:53]} 13. Bxc6 {[%clk 0:02:49]}  Rxc6 {[%clk 0:01:47]} 14. axb5 {[%clk 0:02:49]}  Bxb5 {[%clk 0:01:44]} 15. Nxb5 {[%clk 0:02:50]}  Rb6 {[%clk 0:01:45]} 16. Nbc3 {[%clk 0:02:47]}  Nd5 {[%clk 0:01:40]} 17. O-O {[%clk 0:02:46]}  Qc7 {[%clk 0:01:37]} 18. e4 {[%clk 0:02:39]}  Nxc3 {[%clk 0:01:35]} 19. bxc3 {[%clk 0:02:39]}  Bd6 {[%clk 0:01:33]} 20. f4 {[%clk 0:02:32]}  Rxb1 {[%clk 0:01:24]} 21. Qxb1 {[%clk 0:02:33]}  Rb8 {[%clk 0:01:24]} 22. Qa2 {[%clk 0:02:32]}  Qc6 {[%clk 0:01:22]} 23. Ng3 {[%clk 0:02:23]}  Qb5 {[%clk 0:01:15]} 24. e5 {[%clk 0:02:10]}  Be7 {[%clk 0:01:15]} 25. Ne4 {[%clk 0:02:07]}  a4 {[%clk 0:01:07]} 26. h3 {[%clk 0:02:04]}  Qb3 {[%clk 0:01:03]} 27. Ra1 {[%clk 0:01:55]}  a3 {[%clk 0:01:04]} 28. Kf1 {[%clk 0:01:52]}  Qxa2 {[%clk 0:00:58]} 29. Rxa2 {[%clk 0:01:53]}  Rb2 {[%clk 0:00:58]} 30. Ra1 {[%clk 0:01:53]}  a2 {[%clk 0:00:58]} 31. Ke2 {[%clk 0:01:54]}  Nb6 {[%clk 0:00:49]} 32. Nf2 {[%clk 0:01:52]}  Nd5 {[%clk 0:00:44]} 33. Nd1 {[%clk 0:01:52]}  Nxf4+ {[%clk 0:00:41]} 34. Ke3 {[%clk 0:01:50]}  Nxg2+ {[%clk 0:00:40]} 35. Ke2 {[%clk 0:01:51]}  Nf4+ {[%clk 0:00:40]} 36. Ke3 {[%clk 0:01:51]}  Nd5+ {[%clk 0:00:28]} 37. Ke2 {[%clk 0:01:50]}  Rc2 {[%clk 0:00:29]} 38. Ne3 {[%clk 0:01:48]}  Nxc3+ {[%clk 0:00:22]} 39. Ke1 {[%clk 0:01:48]}  Bh4+ {[%clk 0:00:21]} 40. Kf1 {[%clk 0:01:49]}  Rxd2 {[%clk 0:00:21]} 41. Nxc4 {[%clk 0:01:49]}  Rd1+ {[%clk 0:00:21]} 42. Rxd1 {[%clk 0:01:46]}  Nxd1 {[%clk 0:00:22]} 43. Ke2 {[%clk 0:01:47]}  a1=Q {[%clk 0:00:22]} 0-1


[Site "https://www.chess.com"]

[Event "Titled Tuesday Blitz November 15 Late 2022"]
[White "Petrovic, Aleksa"]
[Black "Mladenovic, Stefan"]
[WhiteFideId "967629"]
[BlackFideId "942227"]
[WhiteElo "2224"]
[BlackElo "2337"]
[Result "1-0"]
[Round "03"]
[TimeControl "180+1"]
[Date "2022.11.16"]
[WhiteClock "0:01:35"]
[BlackClock "0:01:17"]

1. d4 {[%clk 0:02:58]}  Nf6 {[%clk 0:02:59]} 2. c4 {[%clk 0:02:57]}  e6 {[%clk 0:02:59]} 3. Nf3 {[%clk 0:02:57]}  b6 {[%clk 0:02:58]} 4. g3 {[%clk 0:02:57]}  Ba6 {[%clk 0:02:58]} 5. Qa4 {[%clk 0:02:57]}  Bb7 {[%clk 0:02:57]} 6. Bg2 {[%clk 0:02:58]}  c5 {[%clk 0:02:58]} 7. dxc5 {[%clk 0:02:59]}  Bxc5 {[%clk 0:02:58]} 8. O-O {[%clk 0:02:59]}  O-O {[%clk 0:02:58]} 9. Nc3 {[%clk 0:02:59]}  Be7 {[%clk 0:02:57]} 10. Rd1 {[%clk 0:03:00]}  Qc8 {[%clk 0:02:58]} 11. Bf4 {[%clk 0:02:56]}  Na6 {[%clk 0:02:58]} 12. Nb5 {[%clk 0:02:52]}  Nc5 {[%clk 0:02:58]} 13. Qc2 {[%clk 0:02:51]}  Be4 {[%clk 0:02:56]} 14. Qd2 {[%clk 0:02:43]}  d5 {[%clk 0:02:56]} 15. Nd6 {[%clk 0:02:32]}  Bxd6 {[%clk 0:02:54]} 16. Bxd6 {[%clk 0:02:33]}  Rd8 {[%clk 0:02:54]} 17. Be7 {[%clk 0:02:29]}  Rd7 {[%clk 0:02:51]} 18. Bxf6 {[%clk 0:02:28]}  gxf6 {[%clk 0:02:52]} 19. cxd5 {[%clk 0:02:23]}  Rxd5 {[%clk 0:02:49]} 20. Qh6 {[%clk 0:02:20]}  Qd8 {[%clk 0:02:29]} 21. Rxd5 {[%clk 0:02:16]}  Bxd5 {[%clk 0:02:30]} 22. Rd1 {[%clk 0:02:14]}  Qe7 {[%clk 0:02:30]} 23. Rd4 {[%clk 0:02:12]}  Ne4 {[%clk 0:01:48]} 24. Nd2 {[%clk 0:01:55]}  Qc5 {[%clk 0:01:35]} 25. Nxe4 {[%clk 0:01:41]}  Qxd4 {[%clk 0:01:32]} 26. Nxf6+ {[%clk 0:01:41]}  Qxf6 {[%clk 0:01:26]} 27. Qxf6 {[%clk 0:01:42]}  Bxg2 {[%clk 0:01:23]} 28. Qg5+ {[%clk 0:01:41]}  Kf8 {[%clk 0:01:23]} 29. Kxg2 {[%clk 0:01:41]}  Rc8 {[%clk 0:01:23]} 30. Qh6+ {[%clk 0:01:40]}  Kg8 {[%clk 0:01:23]} 31. h4 {[%clk 0:01:40]}  Rc2 {[%clk 0:01:22]} 32. h5 {[%clk 0:01:41]}  Rxe2 {[%clk 0:01:20]} 33. Qf6 {[%clk 0:01:40]}  Kf8 {[%clk 0:01:18]} 34. h6 {[%clk 0:01:33]}  Ke8 {[%clk 0:01:17]} 35. Qh8+ {[%clk 0:01:33]}  Ke7 {[%clk 0:01:18]} 36. Qxh7 {[%clk 0:01:34]}  Rxb2 {[%clk 0:01:17]} 37. Qg7 {[%clk 0:01:35]} 1-0


[Site "https://www.chess.com"]

[Event "Titled Tuesday Blitz November 15 Late 2022"]
[White "Pham, Khoi"]
[Black "Rose, Felix"]
[WhiteFideId "1054988"]
[BlackFideId "5105722"]
[WhiteElo "2457"]
[BlackElo "2039"]
[Result "1-0"]
[Round "03"]
[TimeControl "180+1"]
[Date "2022.11.16"]
[WhiteClock "0:01:22"]
[BlackClock "0:00:19"]

1. d4 {[%clk 0:03:00]}  Nf6 {[%clk 0:02:14]} 2. c4 {[%clk 0:03:00]}  e6 {[%clk 0:02:14]} 3. Nc3 {[%clk 0:03:00]}  d5 {[%clk 0:02:13]} 4. cxd5 {[%clk 0:03:00]}  exd5 {[%clk 0:02:14]} 5. Bg5 {[%clk 0:03:00]}  c6 {[%clk 0:02:14]} 6. Qc2 {[%clk 0:02:59]}  Be7 {[%clk 0:02:14]} 7. e3 {[%clk 0:03:00]}  Nbd7 {[%clk 0:02:14]} 8. Bd3 {[%clk 0:03:00]}  h6 {[%clk 0:02:14]} 9. Bh4 {[%clk 0:03:00]}  Nh5 {[%clk 0:02:14]} 10. Bxe7 {[%clk 0:03:00]}  Qxe7 {[%clk 0:02:15]} 11. O-O-O {[%clk 0:03:00]}  Nb6 {[%clk 0:02:14]} 12. h3 {[%clk 0:02:59]}  Bd7 {[%clk 0:02:12]} 13. Nf3 {[%clk 0:02:58]}  O-O-O {[%clk 0:02:11]} 14. Kb1 {[%clk 0:02:58]}  Kb8 {[%clk 0:02:11]} 15. Rc1 {[%clk 0:02:56]}  Rc8 {[%clk 0:02:05]} 16. a4 {[%clk 0:02:56]}  Nf6 {[%clk 0:02:04]} 17. a5 {[%clk 0:02:56]}  Nc4 {[%clk 0:02:03]} 18. Qa4 {[%clk 0:02:45]}  c5 {[%clk 0:01:48]} 19. Qa2 {[%clk 0:02:33]}  cxd4 {[%clk 0:01:45]} 20. Nxd4 {[%clk 0:02:30]}  Qb4 {[%clk 0:01:39]} 21. Bxc4 {[%clk 0:02:11]}  Rxc4 {[%clk 0:01:29]} 22. Nxd5 {[%clk 0:02:06]}  Rxc1+ {[%clk 0:00:51]} 23. Rxc1 {[%clk 0:02:07]}  Bf5+ {[%clk 0:00:26]} 24. Nxf5 {[%clk 0:02:05]}  Qe4+ {[%clk 0:00:26]} 25. Ka1 {[%clk 0:02:02]}  Nxd5 {[%clk 0:00:25]} 26. Nd6 {[%clk 0:01:49]}  Qe6 {[%clk 0:00:24]} 27. e4 {[%clk 0:01:43]}  Qxd6 {[%clk 0:00:20]} 28. Qxd5 {[%clk 0:01:42]}  Qf4 {[%clk 0:00:19]} 29. Rc2 {[%clk 0:01:37]}  a6 {[%clk 0:00:18]} 30. f3 {[%clk 0:01:37]}  Rc8 {[%clk 0:00:16]} 31. Rxc8+ {[%clk 0:01:36]}  Kxc8 {[%clk 0:00:17]} 32. Qc5+ {[%clk 0:01:37]}  Kb8 {[%clk 0:00:17]} 33. Qf8+ {[%clk 0:01:36]}  Ka7 {[%clk 0:00:17]} 34. Qc5+ {[%clk 0:01:34]}  Ka8 {[%clk 0:00:17]} 35. Qd5 {[%clk 0:01:34]}  Qc1+ {[%clk 0:00:17]} 36. Ka2 {[%clk 0:01:34]}  Qc7 {[%clk 0:00:17]} 37. e5 {[%clk 0:01:32]}  g6 {[%clk 0:00:17]} 38. f4 {[%clk 0:01:32]}  h5 {[%clk 0:00:17]} 39. g4 {[%clk 0:01:32]}  hxg4 {[%clk 0:00:17]} 40. hxg4 {[%clk 0:01:33]}  Ka7 {[%clk 0:00:18]} 41. f5 {[%clk 0:01:33]}  gxf5 {[%clk 0:00:18]} 42. gxf5 {[%clk 0:01:34]}  Ka8 {[%clk 0:00:17]} 43. e6 {[%clk 0:01:34]}  fxe6 {[%clk 0:00:18]} 44. fxe6 {[%clk 0:01:35]}  Qe7 {[%clk 0:00:19]} 45. Qd7 {[%clk 0:01:32]}  Qb4 {[%clk 0:00:19]} 46. e7 {[%clk 0:01:22]}  Qxa5+ {[%clk 0:00:18]} 47. Kb1 {[%clk 0:01:22]}  Qe1+ {[%clk 0:00:19]} 48. Kc2 {[%clk 0:01:22]}  Qe2+ {[%clk 0:00:19]} 49. Kb3 {[%clk 0:01:22]}  Qb5+ {[%clk 0:00:18]} 50. Qxb5 {[%clk 0:01:22]}  axb5 {[%clk 0:00:19]} 51. e8=Q+ {[%clk 0:01:22]} 1-0


[Site "https://www.chess.com"]